bitfinex-derivatives/quotes_ETHF0:USTF0_20250530
["timestamp","ask_amount","ask_price","bid_price","bid_amount"]
[1748615605435,0.6447,2598.4,2598.3,0.76953]
[1748615606633,0.6447,2598.4,2598.2,0.76954]
[1748615606829,1.2559,2598.3,2598.2,0.76956]
[1748615607637,1.2559,2598.3,2598.0,0.00576424]
[1748615607834,0.6611,2598.2,2598.0,0.77538424]
[1748615608034,0.6611,2598.2,2598.0,0.00576424]
[1748615608339,1.2559,2598.1,2598.0,0.77536424]
[1748615608837,2.02549,2598.1,2598.0,0.00576424]
[1748615609638,1.2559,2598.1,2598.0,0.00576424]
[1748615609834,0.6611,2598.2,2598.1,0.76959]
[1748615610037,0.6611,2598.2,2598.1,2.01049]
[1748615610633,1.43066,2598.2,2598.1,1.2409]
[1748615610833,1.43067,2598.2,2598.1,0.76959]
[1748615611036,1.9872,2598.2,2598.1,0.76959]
[1748615611237,0.1924,2598.5,2598.4,0.7695]
[1748615611833,0.1924,2598.5,2598.1,0.6319]
[1748615612031,0.1924,2598.5,2598.1,1.3238]
[1748615612234,0.1924,2598.5,2598.4,0.7695]
[1748615613242,0.1924,2598.5,2598.1,4.5316]
[1748615613544,0.76959,2598.1,2598.0,0.00576424]
[1748615614338,1.2642,2598.2,2598.0,0.00576424]
[1748615614541,0.1924,2598.5,2598.0,5.00576424]
[1748615614840,3.2078,2599.3,2599.2,0.76926]
[1748615615031,5.98147,2599.9,2599.4,0.7692]
[1748615615236,0.7691,2599.8,2599.4,0.7692]
[1748615615438,5.2124,2599.9,2599.4,0.7692]
[1748615615639,3.2078,2599.9,2599.4,0.7692]
[1748615615837,3.2078,2599.9,2599.4,5.7692]
[1748615616042,3.2078,2599.9,2599.8,0.76908]
[1748615616738,3.2078,2599.9,2599.8,5.76908]
[1748615617043,0.00576424,2600.1,2600.0,0.76902]
[1748615617238,0.00576424,2600.1,2600.0,3.97682]
[1748615618144,0.1922,2600.2,2600.0,8.97682]
[1748615618346,1.2493,2601.1,2600.4,1.92226]
[1748615618546,0.76873,2601.0,2600.6,3.2078]
[1748615618744,2.01802,2601.1,2600.9,0.76875]
[1748615618946,3.97648,2601.2,2600.6,3.2078]
[1748615619247,0.76871,2601.1,2600.9,0.76874]
[1748615620447,5.0,2601.1,2600.3,3.2078]
[1748615620762,1.2493,2601.0,2600.3,3.2078]
[1748615620940,0.76882,2600.7,2600.3,3.2078]
[1748615621156,1.2493,2601.0,2600.3,3.2078]
[1748615621346,3.2078,2600.9,2600.2,3.2078]
[1748615621542,3.2078,2600.4,2599.3,3.2078]
[1748615621751,3.2078,2600.1,2599.4,0.76918]
[1748615621949,0.76911,2599.7,2599.3,3.2078]
[1748615622141,1.9891,2600.0,2599.3,3.2078]
[1748615622349,1.9891,2600.0,2599.6,3.21356424]
[1748615622551,0.76911,2599.7,2599.6,3.21356424]
[1748615623451,8.2078,2599.7,2598.9,3.2078]
[1748615623752,1.9889,2599.6,2599.4,0.76918]
[1748615623951,2.75804,2599.6,2599.3,0.76921]
[1748615624252,0.76917,2599.5,2599.3,0.76921]
[1748615624448,2.06937,2599.5,2599.3,0.76921]
[1748615624650,1.3002,2599.5,2599.3,0.76922]
[1748615624855,1.3002,2599.5,2599.4,0.7692]
[1748615625252,1.3002,2599.5,2599.3,0.76921]
[1748615625553,1.3002,2599.5,2599.2,0.76925]
[1748615625753,0.7692,2599.4,2599.1,0.00576424]
[1748615626049,0.7692,2599.4,2599.1,0.77503424]
[1748615626252,2.06939,2599.5,2599.2,0.76926]
[1748615626655,1.3002,2599.5,2599.2,0.76926]
[1748615626856,0.76922,2599.4,2599.2,0.76926]
[1748615627051,1.3002,2599.5,2599.1,0.00576424]
[1748615627252,0.6449,2599.6,2599.1,0.00576424]
[1748615627453,0.76923,2599.3,2599.2,0.76924]
[1748615627861,1.9386,2599.6,2599.1,0.00576424]
[1748615628048,0.76926,2599.2,2599.1,0.00576424]
[1748615628359,0.00576424,2599.7,2599.6,0.76914]
[1748615628859,0.76902,2600.1,2600.0,0.76901]
[1748615629653,0.00576424,2600.3,2599.8,1.92271]
[1748615629854,0.00576424,2600.3,2600.2,0.76896]
[1748615630250,0.07570281,2600.3,2600.2,0.76896]
[1748615630761,1.9225,2600.1,2599.7,4.678]
[1748615630969,0.7692,2599.4,2599.3,4.678]
[1748615631261,0.76926,2599.2,2598.6,3.2078]
[1748615631455,0.76926,2599.2,2598.5,4.678]
[1748615632061,0.76944,2598.6,2598.4,2.00398]
[1748615632261,3.2078,2598.9,2598.4,1.2345]
[1748615632558,0.76947,2598.5,2598.4,1.2345]
[1748615632756,1.92352,2598.7,2597.8,3.2078]
[1748615633059,1.3461,2598.4,2598.3,0.76952]
[1748615633258,0.76951,2598.4,2598.2,0.77530424]
[1748615633556,0.76951,2598.4,2598.2,0.00576424]
[1748615633856,0.00576424,2598.7,2598.6,0.76944]
[1748615634360,0.00576424,2598.7,2598.6,3.97724]
[1748615634657,0.7695,2598.4,2598.3,3.2078]
[1748615634865,0.00576424,2598.7,2598.3,3.2078]
[1748615635157,0.7695,2598.4,2598.3,3.2078]
[1748615635361,0.76945,2598.6,2598.3,3.2078]
[1748615635560,2.09068424,2598.7,2598.3,3.2078]
[1748615635760,0.7695,2598.4,2598.3,3.2078]
[1748615635960,0.76952,2598.3,2598.2,0.00576424]
[1748615637156,0.7697,2597.7,2597.6,4.679]
[1748615637352,1.92404,2598.0,2597.4,0.76977]
[1748615637556,0.76975,2597.6,2597.4,0.76977]
[1748615637863,0.76973,2597.6,2597.4,0.76978]
[1748615638057,1.2865,2597.9,2597.4,0.76978]
[1748615638254,1.2865,2597.9,2597.4,0.00576424]
[1748615638460,3.2078,2598.1,2598.0,0.76961]
[1748615638659,3.2078,2598.1,2597.5,1.3078]
[1748615638961,4.4943,2598.1,2597.7,1.3078]
[1748615639259,5.2639,2598.1,2597.9,0.76963]
[1748615639467,0.76962,2598.0,2597.8,0.76966]
[1748615639661,0.76961,2598.0,2597.9,1.2788]
[1748615639967,3.24449,2598.4,2598.0,0.76961]
[1748615639968,0.76956,2598.2,2598.0,0.76961]
[1748615640156,2.6154,2598.4,2597.9,1.2788]
[1748615640356,1.92397,2598.1,2597.6,4.711]
[1748615640568,0.76973,2597.6,2597.5,1.2788]
[1748615640863,1.92412,2597.9,2597.5,1.2788]
[1748615641160,0.76961,2598.1,2597.9,0.76964]
[1748615641362,4.5285,2598.4,2597.6,1.2788]
[1748615641562,6.59272,2598.4,2598.2,0.76954]
[1748615641759,0.6524,2598.4,2598.3,0.76952]
[1748615642160,0.7695,2598.4,2598.2,0.76954]
[1748615642464,0.76961,2598.0,2597.9,3.8172]
[1748615642764,3.23992,2598.3,2597.5,4.711]
[1748615642957,1.92389,2598.2,2597.7,0.76969]
[1748615643163,1.3161,2598.2,2597.8,1.33]
[1748615643467,0.76964,2598.0,2597.8,2.09966]
[1748615643666,3.2078,2598.4,2597.8,1.33]
[1748615643859,0.76964,2597.9,2597.8,6.041]
[1748615644061,0.76964,2597.9,2597.8,1.33]
[1748615644463,1.92405,2598.0,2597.5,0.76973]
[1748615644664,0.76973,2597.6,2597.5,4.712]
[1748615645161,1.3161,2597.9,2597.5,4.712]
[1748615645366,0.6557,2598.1,2597.7,0.76968]
[1748615645569,3.92203857,2598.4,2598.1,0.76958]
[1748615645763,0.76952,2598.3,2598.2,1.3198]
[1748615646068,4.04723857,2598.4,2598.3,0.76952]
[1748615646263,3.27773857,2598.4,2598.3,0.76952]
[1748615646465,0.06993857,2598.4,2598.3,5.76952]
[1748615646862,0.00576424,2598.7,2598.6,0.76944]
[1748615647266,0.76928,2599.2,2598.7,1.92351]
[1748615647466,0.76931,2599.1,2599.0,0.7693]
[1748615647665,3.2078,2599.5,2599.0,1.3198]
[1748615647859,0.76921,2599.4,2599.3,0.7692]
[1748615648265,0.76922,2599.4,2599.3,0.76921]
[1748615648460,3.97699,2599.5,2599.4,0.7692]
[1748615648666,0.76922,2599.4,2599.3,0.76921]
[1748615648973,3.2078,2599.5,2599.4,0.7692]
[1748615649167,3.97697,2599.5,2599.4,0.7692]
[1748615649368,0.00576424,2599.6,2599.5,0.76917]
[1748615649568,0.76917,2599.5,2599.4,0.76918]
[1748615649866,0.76917,2599.5,2599.4,1.292]
[1748615650067,0.76917,2599.5,2599.4,2.0612]
[1748615650264,0.76917,2599.5,2599.1,0.00576424]
[1748615650265,1.92863424,2599.6,2599.1,0.00576424]
[1748615650571,0.76947,2598.5,2598.4,3.97728]
[1748615650872,0.76944,2598.6,2598.4,3.2078]
[1748615651071,0.76942,2598.7,2598.5,1.292]
[1748615651366,1.3454,2599.2,2598.5,1.292]
[1748615651565,3.21356424,2599.6,2599.0,1.9233]
[1748615651770,0.76923,2599.3,2599.2,3.97705]
[1748615651967,0.76922,2599.4,2599.3,0.76922]
[1748615652565,0.00576424,2599.6,2599.2,1.3064]
[1748615652872,0.76923,2599.3,2599.2,5.28345]
[1748615653059,0.76923,2599.3,2599.2,4.5142]
[1748615653262,1.92301,2599.4,2598.8,1.39946]
[1748615653468,4.4948,2599.3,2598.7,4.711]
[1748615653663,0.76941,2598.7,2598.6,0.00576424]
[1748615653868,3.2078,2599.0,2598.6,0.00576424]
[1748615654063,0.6176,2599.1,2598.6,0.00576424]
[1748615654270,2.05636,2598.9,2598.7,0.76939]
[1748615654464,2.05636,2598.9,2598.8,0.76938]
[1748615654664,2.05636,2598.9,2598.7,2.07578]
[1748615654876,1.287,2598.9,2598.8,0.76938]
[1748615655067,0.6176,2599.1,2599.0,0.76932]
[1748615655364,0.76926,2599.2,2598.8,4.711]
[1748615655560,3.2078,2599.3,2598.9,0.76933]
[1748615655561,0.76933,2599.0,2598.9,0.76933]
[1748615655765,0.76936,2598.9,2598.6,0.00576424]
[1748615655973,0.76938,2598.8,2598.7,4.711]
[1748615656475,0.76941,2598.7,2598.6,0.00576424]
[1748615656668,0.76939,2598.8,2598.7,0.7694]
[1748615656971,0.76941,2598.7,2598.6,0.00576424]
[1748615657166,5.87601,2598.7,2598.6,0.00576424]
[1748615657363,2.66821,2598.7,2598.6,0.00576424]
[1748615657567,1.37831,2598.7,2598.6,0.00576424]
[1748615658268,4.58611,2598.7,2598.6,0.00576424]
[1748615659373,1.37831,2598.7,2598.6,0.00576424]
[1748615659572,4.58611,2598.7,2598.6,0.00576424]
[1748615660576,1.37831,2598.7,2598.6,0.00576424]
[1748615661668,4.58611,2598.7,2598.6,0.00576424]
[1748615661874,5.91001,2598.7,2598.6,0.00576424]
[1748615662270,10.91001,2598.7,2598.6,0.00576424]
[1748615662575,5.91001,2598.7,2598.6,0.00576424]
[1748615663279,10.91001,2598.7,2598.6,0.00576424]
[1748615663474,5.91001,2598.7,2598.6,0.00576424]
[1748615663780,0.7697,2597.7,2597.6,0.6751]
[1748615664079,0.76973,2597.6,2597.5,4.711]
[1748615664479,0.76985,2597.2,2597.1,0.76988]
[1748615664672,0.00577556,2597.4,2597.1,3.2078]
[1748615664877,5.56e-06,2597.4,2597.3,0.76982]
[1748615665374,5.56e-06,2597.4,2597.3,5.76982]
[1748615665779,5.56e-06,2597.4,2597.3,10.48182]
[1748615666277,3.2078,2598.6,2597.6,3.84865]
[1748615666580,1.92367,2598.5,2597.7,10.4324]
[1748615666780,1.92382,2598.3,2597.7,10.4324]
[1748615667278,0.76967,2597.8,2597.7,9.7802]
[1748615667668,0.6262,2598.2,2597.7,9.7802]
[1748615667882,0.76963,2598.0,2597.9,0.76961]
[1748615668178,0.7696,2598.1,2598.0,0.76959]
[1748615668379,0.76964,2598.0,2597.9,0.76962]
[1748615668575,0.76961,2598.1,2598.0,0.7696]
[1748615669176,0.7696,2598.1,2598.0,0.76958]
[1748615669479,0.76967,2597.8,2597.7,3.2078]
[1748615669676,0.76967,2597.8,2597.7,8.5835]
[1748615669983,0.76967,2597.8,2597.7,7.8138]
[1748615670373,0.76967,2597.8,2597.7,3.2078]
[1748615670875,3.22137,2598.2,2598.0,0.76959]
[1748615670876,2.06697,2598.2,2598.0,0.76959]
[1748615671079,0.7696,2598.1,2598.0,0.7696]
[1748615671278,1.2974,2598.2,2597.7,3.2078]
[1748615671481,0.76965,2597.9,2597.8,0.76966]
[1748615671673,1.2974,2598.2,2597.8,0.76966]
[1748615671674,0.00577556,2598.3,2597.8,1.92417]
[1748615671981,0.76961,2598.0,2597.9,5.2266]
[1748615672177,0.76961,2598.0,2597.9,5.99624]
[1748615672383,0.76961,2598.0,2597.9,5.99623]
[1748615672577,0.76961,2598.0,2597.9,5.99624]
[1748615672884,0.76961,2598.0,2597.9,5.2266]
[1748615673178,0.76961,2598.0,2597.9,4.606]
[1748615673385,0.76975,2597.6,2597.5,5.37575]
[1748615673579,0.76976,2597.5,2597.4,5.37579]
[1748615673878,0.76976,2597.5,2597.4,4.606]
[1748615674088,0.76976,2597.5,2597.4,5.37578]
[1748615674283,0.76976,2597.5,2597.4,4.606]
[1748615675487,0.76976,2597.5,2597.0,3.2078]
[1748615675488,0.76988,2597.1,2597.0,3.2078]
[1748615675786,0.76991,2597.0,2596.9,1e-08]
[1748615675987,3.36981,2597.0,2596.9,1e-08]
[1748615676186,8.36981,2597.0,2596.9,1e-08]
[1748615677179,8.66926345,2597.0,2596.9,1e-08]
[1748615679574,9.81479985,2597.0,2596.9,1e-08]
[1748615680488,1.92584,2595.6,2594.9,3.8768]
[1748615680787,0.96298,2595.5,2595.3,0.77041]
[1748615680974,0.96298,2595.5,2595.4,0.07705941]
[1748615681376,0.1926,2595.5,2595.4,5.84743941]
[1748615681686,1.3186,2596.6,2595.4,8.92893941]
[1748615681979,0.77009,2596.4,2596.2,0.77013]
[1748615682180,5.13284,2596.7,2595.9,5.2633]
[1748615682377,0.7701,2596.4,2596.2,0.77013]
[1748615682579,3.2078,2596.7,2596.0,0.0770416]
[1748615682781,0.77007,2596.5,2596.3,0.77011]
[1748615682987,0.77007,2596.5,2596.0,0.0770416]
[1748615683287,0.00577556,2596.6,2596.5,0.77006]
[1748615683585,0.00577556,2596.6,2596.0,0.0770416]
[1748615683779,0.77013,2596.3,2596.0,0.0770416]
[1748615684175,1.31467556,2596.6,2596.3,0.77012]
[1748615684176,0.00577556,2596.6,2596.3,0.77012]
[1748615684382,0.77009,2596.4,2596.3,0.77012]
[1748615684581,0.00577556,2596.6,2595.9,8.4721]
[1748615684981,0.77013,2596.3,2596.2,0.77013]
[1748615685186,0.7701,2596.4,2596.3,0.77011]
[1748615685491,0.77008,2596.5,2596.4,0.77009]
[1748615685681,0.7701,2596.4,2596.3,0.77011]
[1748615685885,0.77013,2596.3,2596.2,0.77013]
[1748615686082,0.00577556,2596.6,2595.9,3.8631]
[1748615686282,3.2078,2596.4,2595.9,0.6553]
[1748615686485,0.63617556,2596.6,2595.9,3.8631]
[1748615686689,0.77012,2596.3,2596.2,0.77012]
[1748615686992,0.77019,2596.1,2596.0,0.77019]
[1748615687290,1.92515,2596.5,2595.9,3.8631]
[1748615687483,0.7702,2596.1,2596.0,0.7702]
[1748615687680,0.77016,2596.2,2596.1,0.77017]
[1748615688085,0.77018,2596.1,2596.0,0.77019]
[1748615688699,1.23307556,2596.6,2595.6,3.2078]
[1748615688888,0.7703,2595.8,2595.7,0.77028]
[1748615689492,0.7703,2595.7,2595.6,8.58711]
[1748615689691,0.77029,2595.8,2595.7,0.77027]
[1748615689990,0.77018,2596.2,2596.1,0.77016]
[1748615690191,1.92532,2596.3,2595.6,7.8168]
[1748615690394,0.00577556,2596.6,2595.9,1.9256]
[1748615690598,0.77015,2596.3,2596.2,0.77012]
[1748615690795,0.77015,2596.3,2596.2,4.609]
[1748615691003,0.77015,2596.3,2596.2,5.37915]
[1748615691390,0.7701,2596.4,2596.3,0.77008]
[1748615691698,0.77015,2596.2,2596.1,3.97796]
[1748615691897,0.77017,2596.2,2596.1,0.77016]
[1748615692192,0.77018,2596.1,2596.0,0.6182]
[1748615692399,0.77019,2596.1,2596.0,0.77018]
[1748615692699,2.5867,2596.5,2595.9,4.609]
[1748615692899,0.77017,2596.2,2596.1,0.77014]
[1748615694192,0.77021,2596.1,2596.0,0.77019]
[1748615694596,0.77021,2596.0,2595.9,5.37922]
[1748615694793,4.4632,2596.4,2595.6,0.6182]
[1748615694998,0.7703,2595.8,2595.7,0.77028]
[1748615695399,0.77029,2595.8,2595.7,0.77027]
[1748615695595,0.77021,2596.1,2596.0,0.77019]
[1748615695904,1.9253,2596.3,2595.7,3.2078]
[1748615696213,0.77023,2596.0,2595.9,0.77021]
[1748615696702,1.92547,2596.1,2595.7,0.77028]
[1748615696893,1.2554,2596.2,2595.6,3.2078]
[1748615697093,1.2554,2596.2,2595.9,0.77023]
[1748615697296,0.77023,2596.0,2595.9,0.77023]
[1748615697701,0.77025,2595.9,2595.8,0.77024]
[1748615697898,1.92539,2596.2,2595.6,5.13361]
[1748615698093,0.77027,2595.9,2595.8,0.77025]
[1748615698599,0.7703,2595.7,2595.6,3.97809]
[1748615698799,0.77033,2595.6,2595.5,4.61]
[1748615698997,0.77038,2595.4,2595.3,0.6286]
[1748615699703,0.77041,2595.3,2595.2,0.00577556]
[1748615700600,3.97821,2595.3,2595.2,0.00577556]
[1748615700791,0.77041,2595.3,2595.2,0.00577556]
[1748615701098,3.97821,2595.3,2595.2,0.00577556]
[1748615701699,3.2078,2595.3,2595.2,0.00577556]
[1748615701900,5.13327,2596.1,2595.2,0.00577556]
[1748615702097,5.13327,2596.1,2595.2,4.54937556]
[1748615702098,0.77034,2595.6,2595.2,4.54937556]
[1748615702298,0.77034,2595.6,2595.2,1.34157556]
[1748615702299,0.77041,2595.3,2595.2,1.34157556]
[1748615702802,0.77041,2595.3,2595.2,0.00577556]
[1748615703601,0.77041,2595.3,2595.2,5.56e-06]
[1748615703899,5.77041,2595.3,2595.2,5.56e-06]
[1748615704405,0.77074,2594.2,2594.1,3.2078]
[1748615704794,3.2078,2594.3,2593.8,0.77085]
[1748615705003,0.77081,2594.0,2593.6,1.9216]
[1748615705199,0.77086,2593.8,2593.7,1.2558]
[1748615705406,3.2078,2594.3,2593.7,1.2558]
[1748615705407,0.00577556,2594.0,2593.7,1.2558]
[1748615705706,0.77660556,2594.0,2593.7,1.2558]
[1748615705899,0.00577556,2594.0,2593.7,1.2558]
[1748615706097,0.77086,2593.8,2593.7,1.2558]
[1748615706501,0.00577556,2594.0,2593.8,0.77085]
[1748615706701,0.00577556,2594.0,2593.9,2.04963]
[1748615706900,0.77657556,2594.0,2593.9,1.2788]
[1748615708207,0.00577556,2594.0,2593.9,2.04963]
[1748615708803,0.77066,2594.5,2594.0,1.92701]
[1748615709007,0.77067,2594.5,2594.1,9.0236]
[1748615709204,1.8802,2594.9,2594.2,1.2788]
[1748615709512,0.77062,2594.6,2594.5,0.77064]
[1748615709806,0.00577556,2594.8,2594.4,3.2078]
[1748615710011,0.00577556,2594.8,2594.7,3.97839]
[1748615710605,0.00577556,2594.8,2594.7,10.84599]
[1748615710798,5.1335,2595.8,2594.9,1.92634]
[1748615711001,3.2078,2595.8,2595.0,1.2323]
[1748615711217,0.77044,2595.2,2595.1,4.537]
[1748615711810,0.77047,2595.1,2595.0,1.2323]
[1748615712310,0.7705,2595.0,2594.9,0.00577556]
[1748615712507,0.77068,2594.4,2594.3,4.537]
[1748615712710,0.77071,2594.3,2594.2,1.3088]
[1748615712907,0.77089,2593.7,2593.6,3.2078]
[1748615713106,1.2174,2594.2,2593.6,4.5166]
[1748615713306,0.6758,2594.6,2593.9,3.2078]
[1748615713505,0.00577556,2594.5,2594.2,3.2078]
[1748615713708,0.00577556,2594.5,2594.4,0.77068]
[1748615714208,0.00577556,2594.5,2594.4,2.07948]
[1748615715502,0.77642556,2594.5,2594.4,2.07948]
[1748615715706,0.77642556,2594.5,2594.4,1.3088]
[1748615716916,0.77077,2594.1,2594.0,0.77654556]
[1748615717209,0.77069,2594.4,2594.3,0.77068]
[1748615717417,0.77071,2594.3,2594.2,3.97851]
[1748615717913,0.77069,2594.4,2594.2,3.97851]
[1748615718114,0.00577556,2594.5,2594.3,2.07641]
[1748615718312,0.00577556,2594.5,2594.3,2.07639]
[1748615718515,0.00577556,2594.5,2594.4,0.77068]
[1748615718731,3.2078,2594.8,2594.7,0.77059]
[1748615719009,0.77045,2595.2,2595.1,0.77044]
[1748615719216,0.77049,2595.1,2595.0,0.77048]
[1748615719607,0.77052,2595.0,2594.9,0.77051]
[1748615719812,0.77052,2595.0,2594.9,1.2923]
[1748615720217,0.7705,2595.1,2595.0,0.77048]
[1748615720413,0.7705,2595.0,2594.9,1.2923]
[1748615720619,0.77059,2594.8,2594.6,3.2078]
[1748615720817,0.77059,2594.7,2594.6,3.2078]
[1748615721917,0.75738453,2594.7,2594.6,3.2078]
[1748615722115,0.77071,2594.3,2594.2,1.8566]
[1748615722415,0.77071,2594.3,2594.2,2.62734]
[1748615722617,0.7707,2594.4,2594.3,0.77068]
[1748615722815,5.13422,2594.8,2594.4,0.77067]
[1748615722816,0.77068,2594.5,2594.4,0.77067]
[1748615723006,0.77065,2594.6,2594.5,0.77064]
[1748615723209,0.77067,2594.5,2594.4,0.77065]
[1748615724214,0.77068,2594.4,2594.3,1.2383]
[1748615724717,1.2367,2594.6,2594.3,0.77068]
[1748615724918,0.77068,2594.5,2594.4,0.77066]
[1748615725416,0.77071,2594.3,2594.2,2.04872]
[1748615725608,0.77071,2594.3,2594.2,1.278]
[1748615725814,0.77077,2594.1,2594.0,0.00577556]
[1748615726219,0.77077,2594.1,2594.0,0.77657556]
[1748615726414,4.4999,2594.4,2594.0,3.21357556]
[1748615726716,0.9634,2594.5,2594.4,0.77068]
[1748615726910,0.1927,2594.5,2594.1,1.8914]
[1748615727117,0.77074,2594.2,2594.1,2.66215]
[1748615727417,2.11936,2594.5,2594.2,0.77072]
[1748615727418,0.77074,2594.3,2594.2,0.77072]
[1748615727617,0.96339,2594.5,2594.4,0.77068]
[1748615728519,0.77068,2594.4,2594.3,2.00479]
[1748615728916,1.92672,2594.4,2594.0,3.21357556]
[1748615729222,0.77077,2594.1,2594.0,0.00577556]
[1748615729810,0.77077,2594.1,2594.0,0.77657556]
[1748615730217,0.77072,2594.4,2594.3,0.77069]
[1748615730522,0.96335,2594.5,2594.4,0.77068]
[1748615731122,0.77074,2594.3,2594.2,0.77071]
[1748615731325,0.77074,2594.3,2594.2,2.02631]
[1748615731815,0.7707,2594.4,2594.3,0.77068]
[1748615732020,0.96337,2594.5,2594.4,0.77068]
[1748615732219,0.1927,2594.5,2594.4,0.77068]
[1748615732618,0.1927,2594.5,2594.3,1.2556]
[1748615732922,0.77077,2594.1,2594.0,5.28656556]
[1748615733119,0.1927,2594.5,2594.0,5.77137556]
[1748615733319,0.1927,2594.5,2594.4,0.77068]
[1748615733516,0.1927,2594.5,2594.3,0.7707]
[1748615733729,0.1927,2594.5,2594.1,0.77076]
[1748615733924,0.1927,2594.5,2594.0,6.42017556]
[1748615733925,0.77077,2594.1,2594.0,6.42017556]
[1748615734519,0.1927,2594.5,2594.4,0.77068]
[1748615735224,0.96335,2594.5,2594.4,0.77068]
[1748615735726,0.1927,2594.5,2594.4,0.77068]
[1748615735924,0.26263857,2594.5,2594.4,0.77068]
[1748615737226,0.26263857,2594.5,2594.4,10.28068]
[1748615737420,0.26263857,2594.5,2594.4,5.28068]
[1748615738831,2.09562,2595.0,2594.9,0.77054]
[1748615739025,0.7706,2594.8,2594.7,0.77057]
[1748615739218,1.3251,2595.0,2594.5,4.4508]
[1748615739423,0.77063,2594.6,2594.5,4.4508]
[1748615739917,0.77063,2594.6,2594.5,5.22146]
[1748615740526,0.77063,2594.6,2594.5,4.4508]
[1748615740727,0.77063,2594.6,2594.5,3.2078]
[1748615741424,0.77063,2594.6,2594.5,3.97846]
[1748615741924,0.77063,2594.6,2594.5,5.25286]
[1748615742429,0.77062,2594.7,2594.6,0.7706]
[1748615742633,1.3251,2595.0,2594.5,4.4822]
[1748615742928,2.09562,2595.0,2594.9,0.77054]
[1748615743534,3.2078,2595.1,2595.0,0.77051]
[1748615743926,3.97828,2595.1,2595.0,0.77051]
[1748615744531,0.77054,2595.0,2594.9,0.77052]
[1748615744729,3.2078,2595.1,2595.0,0.77051]
[1748615745232,0.00577556,2595.2,2595.1,0.77048]
[1748615745527,0.00577556,2595.2,2595.1,2.09018]
[1748615746031,3.2078,2595.5,2595.4,0.77039]
[1748615746424,0.6746,2595.8,2595.6,0.7703]
[1748615746425,0.77032,2595.7,2595.6,0.7703]
[1748615747033,0.6746,2595.8,2595.7,0.7703]
[1748615747227,0.00577556,2595.9,2595.8,0.77027]
[1748615748234,0.00577556,2595.9,2595.4,4.51477556]
[1748615748528,6.39320556,2595.9,2595.4,0.00577556]
[1748615748744,0.77036,2595.5,2595.4,0.00577556]
[1748615749238,1.9259,2595.5,2594.6,10.92225]
[1748615749535,0.6284,2595.5,2595.2,1.92613]
[1748615749739,1.39877,2595.5,2595.4,0.77039]
[1748615749933,0.77039,2595.4,2595.3,2.0493]
[1748615750131,1.46870857,2595.5,2595.4,0.77039]
[1748615750637,0.77039,2595.4,2595.3,2.0493]
[1748615750932,0.69833857,2595.5,2595.3,1.2789]
[1748615751130,1.46871857,2595.5,2595.4,0.77039]
[1748615751531,0.06993857,2595.5,2595.4,0.77039]
[1748615753938,0.06993857,2595.5,2595.4,2.00099]
[1748615756037,0.1926,2595.6,2595.5,0.77036]
[1748615756252,0.1926,2595.6,2595.5,5.28206]
[1748615759838,0.00577556,2595.9,2595.8,0.77027]
[1748615760036,0.00577556,2595.9,2595.8,3.97807]
[1748615760640,0.00577556,2595.9,2595.8,5.25237]
[1748615761540,5.56e-06,2595.9,2595.8,9.73837]
[1748615761836,5.56e-06,2595.9,2595.8,15.04590066]
[1748615762036,5.56e-06,2595.9,2595.8,33.87790066]
[1748615762236,0.6389,2597.7,2596.2,3.85065]
[1748615762432,0.6389,2597.7,2597.6,0.76974]
[1748615762636,1.2663,2597.9,2597.8,0.76968]
[1748615762938,0.6238,2598.0,2597.8,3.2078]
[1748615763234,0.6238,2598.0,2597.6,0.00577556]
[1748615763435,0.76971,2597.7,2597.6,0.00577556]
[1748615763750,3.97751,2597.7,2597.6,0.00577556]
[1748615763941,8.97751,2597.7,2597.6,0.00577556]
[1748615764538,9.04744857,2597.7,2597.6,0.00577556]
[1748615765035,3.27773857,2597.7,2597.6,0.00577556]
[1748615765235,3.27773857,2597.7,2597.6,0.77551556]
[1748615765236,0.06993857,2597.7,2597.6,0.77551556]
[1748615765641,0.06993857,2597.7,2597.6,2.12401556]
[1748615766135,0.83964857,2597.7,2597.6,0.00577556]
[1748615766737,0.06993857,2597.7,2597.6,0.77551556]
[1748615767835,0.6238,2598.0,2597.6,0.00577556]
[1748615768042,0.6238,2598.0,2597.8,3.97746]
[1748615768341,0.76965,2597.9,2597.8,3.97746]
[1748615768545,1.34487556,2598.2,2597.8,3.2078]
[1748615768744,0.00577556,2598.2,2598.1,3.97739]
[1748615768937,3.2078,2599.1,2598.1,7.6918]
[1748615769136,0.76939,2598.8,2598.7,0.76938]
[1748615769542,1.2938,2599.3,2598.6,5.7506]
[1748615769742,0.76931,2599.1,2599.0,0.76931]
[1748615769939,0.76932,2599.0,2598.9,3.2078]
[1748615770144,0.76941,2598.8,2598.6,5.7506]
[1748615770444,0.77501556,2599.3,2599.2,0.76926]
[1748615770834,0.77502556,2599.3,2599.2,0.76926]
[1748615771143,0.76929,2599.1,2599.0,3.21357556]
[1748615771345,0.76929,2599.1,2599.0,0.00577556]
[1748615772344,0.76941,2598.7,2598.6,3.2078]
[1748615772544,1.92338,2599.0,2598.5,4.483]
[1748615772545,0.76944,2598.6,2598.5,4.483]
[1748615773046,0.76939,2598.8,2598.7,0.76939]
[1748615773249,1.3394,2599.0,2598.5,8.9467]
[1748615773438,0.76943,2598.7,2598.6,0.76943]
[1748615773646,0.76937,2598.9,2598.8,0.76937]
[1748615773847,0.00577556,2599.3,2598.8,3.2078]
[1748615774040,0.00577556,2599.3,2598.9,1.2559]
[1748615774246,0.76935,2598.9,2598.8,7.6898]
[1748615774538,0.76935,2598.9,2598.8,4.482]
[1748615774738,0.76944,2598.6,2598.5,0.00577556]